lending/lending_fUSD_20240131
["ID","MTS","AMOUNT","RATE_DAILY","PERIOD"]
[313087338,1706736647975,-500.0,0.00038356,5]
[313087340,1706736647985,-500.0,0.00038356,5]
[313087342,1706736647995,-500.0,0.00038356,5]
[313087344,1706736648004,-559.86456837,0.00038356,5]
[313087346,1706736648015,-156.04177889,0.00038356,5]
[313087348,1706736648027,-619.06391363,0.00038356,5]
[313087350,1706736648037,-500.0,0.00038356,5]
[313087352,1706736648046,-500.0,0.00038356,5]
[313087355,1706736648056,-500.0,0.00038356,5]
[313087357,1706736648066,-500.0,0.00038356,5]
[313087359,1706736648076,-500.0,0.00038356,5]
[313087361,1706736648087,-500.0,0.00038356,5]
[313087363,1706736648096,-500.0,0.00038356,5]
[313087365,1706736648106,-500.0,0.00038356,5]
[313087367,1706736648116,-500.0,0.00038356,5]
[313087369,1706736648126,-500.0,0.00038356,5]
[313087371,1706736648136,-500.0,0.00038356,5]
[313087373,1706736648146,-500.0,0.00038356,5]
[313087375,1706736648156,-500.0,0.00038356,5]
[313087377,1706736648166,-213.18996981,0.00038356,5]
[313087379,1706736648176,-500.0,0.00038356,5]
[313087382,1706736648186,-1208.58,0.00038356,5]
[313087384,1706736648197,-294.0,0.00038356,5]
[313087386,1706736648207,-500.0,0.00038356,5]
[313087388,1706736648219,-500.0,0.00038356,5]
[313087390,1706736648229,-500.0,0.00038356,5]
[313087392,1706736648239,-500.0,0.00038356,5]
[313087394,1706736648250,-1000.0,0.00038356,21]
[313087396,1706736648259,-500.0,0.00038356,5]
[313087398,1706736648272,-204.72759903,0.00038356,5]
[313087400,1706736648281,-500.0,0.00038356,5]
[313087402,1706736648292,-500.0,0.00038356,5]
[313087404,1706736648301,-500.0,0.00038356,5]
[313087407,1706736648315,-500.0,0.00038356,5]
[313087409,1706736648325,-500.0,0.00038356,5]
[313087411,1706736648335,-500.0,0.00038356,5]
[313087426,1706736648547,-500.0,0.00038356,2]
[313087428,1706736648557,-500.0,0.00038356,5]
[313087430,1706736648568,-500.0,0.00038356,5]
[313087432,1706736648578,-500.0,0.00038356,5]
[313087435,1706736648592,-500.0,0.00038356,5]
[313087438,1706736648601,-169.27018609,0.00038356,5]
[313087440,1706736648610,-500.0,0.00038356,5]
[313087443,1706736648619,-556.20644697,0.00038356,5]
[313087446,1706736648628,-500.0,0.00038356,5]
[313087448,1706736648638,-500.0,0.00038356,5]
[313087451,1706736648647,-583.31,0.00038356,5]
[313087454,1706736648656,-476.79401286,0.00038356,5]
[313087456,1706736648666,-594.76626659,0.00038356,5]
[313087458,1706736648675,-500.0,0.00038356,5]
[313087460,1706736648684,-500.0,0.00038356,5]
[313087462,1706736648697,-500.0,0.00038356,5]
[313087464,1706736648706,-500.0,0.00038356,5]
[313087466,1706736648716,-500.0,0.00038356,5]
[313087468,1706736648728,-500.0,0.00038356,5]
[313087470,1706736648738,-500.0,0.00038356,5]
[313087472,1706736648747,-1528.21,0.00038356,5]
[313087474,1706736648757,-515.39,0.00038356,5]
[313087476,1706736648768,-500.0,0.00038356,5]
[313087478,1706736648778,-500.0,0.00038356,5]
[313087480,1706736648787,-500.0,0.00038356,5]
[313087482,1706736648797,-164.23289444,0.00038356,5]
[313087484,1706736648806,-500.0,0.00038356,5]
[313087486,1706736648815,-680.82,0.00038356,5]
[313087488,1706736648825,-500.0,0.00038356,5]
[313087490,1706736648834,-585.71,0.00038356,2]
[313087492,1706736648846,-500.0,0.00038356,5]
[313087495,1706736648856,-500.0,0.00038356,5]
[313087497,1706736648865,-535.28,0.00038356,5]
[313087499,1706736648874,-500.0,0.00038356,5]
[313087501,1706736648884,-500.0,0.00038356,5]
[313087503,1706736648894,-176.37,0.00038356,5]
[313087505,1706736648903,-573.78,0.00038356,5]
[313087507,1706736648913,-500.0,0.00038356,5]
[313087509,1706736648922,-500.0,0.00038356,5]
[313087511,1706736648931,-500.0,0.00038356,5]
[313087513,1706736648942,-3275.23,0.00038356,5]
[313087515,1706736648952,-500.0,0.00038356,5]
[313087517,1706736648961,-500.0,0.00038356,5]
[313087519,1706736648970,-500.0,0.00038356,5]
[313087521,1706736648979,-500.0,0.00038356,5]
[313087523,1706736648988,-500.0,0.00038356,5]
[313087525,1706736648998,-500.0,0.00038356,5]
[313087527,1706736649007,-500.0,0.00038356,5]
[313087529,1706736649019,-500.0,0.00038356,5]
[313087531,1706736649028,-500.0,0.00038356,5]
[313087533,1706736649037,-500.0,0.00038356,5]
[313087535,1706736649047,-500.0,0.00038356,5]
[313087537,1706736649056,-500.0,0.00038356,5]
[313087539,1706736649065,-500.0,0.00038356,5]
[313087541,1706736649075,-500.0,0.00038356,5]
[313087543,1706736649084,-500.0,0.00038356,5]
[313087545,1706736649093,-500.0,0.00038356,5]
[313087547,1706736649102,-500.0,0.00038356,5]
[313087549,1706736649111,-500.0,0.00038356,5]
[313087551,1706736649120,-500.0,0.00038356,5]
[313087553,1706736649130,-500.0,0.00038356,5]
[313087555,1706736649139,-500.0,0.00038356,5]
[313087557,1706736649148,-500.0,0.00038356,5]
[313087559,1706736649157,-500.0,0.00038356,5]
[313087561,1706736649166,-500.0,0.00038356,5]
[313087563,1706736649175,-500.0,0.00038356,5]
[313087565,1706736649185,-500.0,0.00038356,5]
[313087567,1706736649196,-500.0,0.00038356,5]
[313087569,1706736649205,-500.0,0.00038356,5]
[313087571,1706736649215,-500.0,0.00038356,5]
[313087573,1706736649224,-521.5866711,0.00038356,5]
[313087575,1706736649233,-1261.55,0.00038356,5]
[313087577,1706736649243,-500.0,0.00038356,5]
[313087580,1706736649252,-500.0,0.00038356,5]
[313087582,1706736649261,-500.0,0.00038356,5]
[313087584,1706736649281,-500.00209144,0.00038356,5]
[313087587,1706736649292,-500.0,0.00038356,5]
[313087589,1706736649302,-524.25820901,0.00038356,5]
[313087591,1706736649312,-500.0,0.00038356,5]
[313087593,1706736649322,-500.0,0.00038356,5]
[313087595,1706736649332,-500.0,0.00038356,5]
[313087597,1706736649342,-561.71551936,0.00038356,5]
[313087599,1706736649352,-1056.79,0.00038356,5]
[313087601,1706736649362,-794.7,0.00038356,5]
[313087604,1706736649372,-523.8,0.00038356,5]
[313087606,1706736649382,-565.45858417,0.00038356,5]
[313087608,1706736649392,-581.87,0.00038356,5]
[313087610,1706736649401,-500.0,0.00038356,5]
[313087612,1706736649411,-500.0,0.00038356,5]
[313087614,1706736649421,-5284.67,0.00038356,5]
[313087616,1706736649430,-500.0,0.00038356,5]
[313087618,1706736649440,-500.0,0.00038356,5]
[313087620,1706736649450,-542.49214786,0.00038356,5]
[313087622,1706736649459,-500.0,0.00038356,5]
[313087624,1706736649469,-672.7,0.00038356,5]
[313087626,1706736649479,-500.0,0.00038356,5]
[313087628,1706736649489,-546.63670824,0.00038356,5]
[313087630,1706736649498,-1126.15,0.00038356,5]
[313087633,1706736649508,-500.0,0.00038356,5]
[313087634,1706736649519,-500.0,0.00038356,5]
[313087637,1706736649529,-500.0,0.00038356,5]
[313087639,1706736649538,-516.29662689,0.00038356,5]
[313087641,1706736649548,-500.0,0.00038356,5]
[313087643,1706736649557,-1000.0,0.00038356,7]
[313087645,1706736649567,-606.24124761,0.00038356,5]
[313087646,1706736649577,-500.0,0.00038356,5]
[313087648,1706736649586,-500.0,0.00038356,5]
[313087650,1706736649596,-500.0,0.00038356,5]
[313087652,1706736649606,-584.9,0.00038356,5]
[313087654,1706736649616,-651.12,0.00038356,5]
[313087656,1706736649624,-507.27,0.00038356,5]
[313087658,1706736649634,-500.0,0.00038356,5]
[313087660,1706736649643,-1698.73,0.00038356,5]
[313087662,1706736649653,-184.0604156,0.00038356,5]
[313087664,1706736649662,-1048.19498601,0.00038356,7]
[313087667,1706736649672,-500.0,0.00038356,5]
[313087669,1706736649682,-608.75,0.00038356,5]
[313087671,1706736649691,-575.22107539,0.00038356,5]
[313087673,1706736649701,-500.0,0.00038356,5]
[313087675,1706736649710,-500.0,0.00038356,5]
[313087677,1706736649720,-605.81,0.00038356,5]
[313087679,1706736649730,-678.92,0.00038356,5]
[313087681,1706736649739,-500.0,0.00038356,5]
[313087683,1706736649748,-575.47268397,0.00038356,5]
[313087685,1706736649758,-500.0,0.00038356,5]
[313087687,1706736649768,-508.48,0.00038356,5]
[313087689,1706736649778,-500.0,0.00038356,5]
[313087691,1706736649787,-977.32,0.00038356,5]
[313087693,1706736649797,-500.0,0.00038356,5]
[313087695,1706736649807,-500.0,0.00038356,5]
[313087697,1706736649816,-502.78,0.00038356,5]
[313087699,1706736649826,-1315.53,0.00038356,5]
[313087701,1706736649836,-1687.18,0.00038356,5]
[313087703,1706736649845,-539.72781312,0.00038356,5]
[313087705,1706736649855,-500.0,0.00038356,5]
[313087707,1706736649865,-500.0,0.00038356,5]
[313087709,1706736649874,-500.0,0.00038356,5]
[313087711,1706736649883,-559.4354564,0.00038356,5]
[313087713,1706736649892,-500.0,0.00038356,5]
[313087715,1706736649902,-500.0,0.00038356,5]
[313087717,1706736649911,-500.0,0.00038356,5]
[313087719,1706736649921,-500.0,0.00038356,5]
[313087722,1706736649934,-1511.96,0.00038356,5]
[313087724,1706736649943,-500.0,0.00038356,5]
[313087726,1706736649953,-558.80524711,0.00038356,5]
[313087728,1706736649963,-500.0,0.00038356,5]
[313087730,1706736649973,-500.0,0.00038356,5]
[313087732,1706736649982,-1466.44,0.00038356,5]
[313087734,1706736649992,-500.0,0.00038356,5]
[313087736,1706736650002,-500.0,0.00038356,5]
[313087738,1706736650012,-500.0,0.00038356,5]
[313087739,1706736650024,-587.61889007,0.00038356,5]
[313087741,1706736650034,-1262.64,0.00038356,5]
[313087742,1706736650044,-1686.6,0.00038356,5]
[313087744,1706736650055,-1759.87,0.00038356,5]
[313087746,1706736650065,-529.15059063,0.00038356,5]
[313087748,1706736650075,-511.82619386,0.00038356,5]
[313087751,1706736650085,-500.0,0.00038356,5]
[313087753,1706736650095,-602.87308861,0.00038356,5]
[313087754,1706736650105,-796.91,0.00038356,5]
[313087756,1706736650115,-574.75213718,0.00038356,5]
[313087758,1706736650125,-500.0,0.00038356,5]
[313087760,1706736650135,-500.0,0.00038356,5]
[313087761,1706736650144,-500.0,0.00038356,5]
[313087762,1706736650154,-500.0,0.00038356,5]
[313087763,1706736650164,-500.0,0.00038356,5]
[313087764,1706736650174,-550.40287201,0.00038356,5]
[313087765,1706736650184,-500.0,0.00038356,10]
[313087766,1706736650195,-500.0,0.00038356,5]
[313087767,1706736650205,-529.4,0.00038356,5]
[313087768,1706736650218,-662.47,0.00038356,5]
[313087769,1706736650227,-3011.45,0.00038356,5]
[313087770,1706736650238,-902.1,0.00038356,5]
[313087771,1706736650248,-500.0,0.00038356,5]
[313087772,1706736650258,-500.0,0.00038356,5]
[313087773,1706736650270,-500.0,0.00038356,5]
[313087774,1706736650280,-500.0,0.00038356,5]
[313087775,1706736650293,-502.57170584,0.00038356,5]
[313087776,1706736650303,-500.0,0.00038356,5]
[313087777,1706736650313,-812.18,0.00038356,5]
[313087778,1706736650323,-500.0,0.00038356,5]
[313087779,1706736650332,-742.82,0.00038356,5]
[313087780,1706736650343,-1136.51,0.00038356,5]
[313087781,1706736650353,-928.46,0.00038356,5]
[313087782,1706736650362,-500.0,0.00038356,5]
[313087783,1706736650373,-500.0,0.00038356,5]
[313087784,1706736650383,-518.94823356,0.00038356,5]
[313087785,1706736650393,-638.32,0.00038356,5]
[313087786,1706736650403,-523.00895278,0.00038356,5]
[313087787,1706736650413,-914.58,0.00038356,5]
[313087788,1706736650423,-500.0,0.00038356,5]
[313087789,1706736650433,-504.02978878,0.00038356,5]
[313087790,1706736650443,-559.4277898,0.00038356,5]
[313087791,1706736650453,-682.55,0.00038356,5]
[313087792,1706736650471,-610.16709152,0.00038356,5]
[313087793,1706736650492,-1957.6,0.00038356,5]
[313087794,1706736650502,-500.0,0.00038356,5]
[313087795,1706736650512,-465.67220929,0.00038356,5]
[313087796,1706736650524,-1785.32,0.00038356,5]
[313087797,1706736650534,-500.0,0.00038356,5]
[313087798,1706736650543,-500.0,0.00038356,5]
[313087799,1706736650553,-729.97,0.00038356,5]
[313087800,1706736650562,-500.0,0.00038356,5]
[313087801,1706736650572,-652.82,0.00038356,5]
[313087802,1706736650582,-500.0,0.00038356,5]
[313087803,1706736650592,-963.87,0.00038356,5]
[313087804,1706736650601,-500.0,0.00038356,5]
[313087805,1706736650614,-542.64397959,0.00038356,5]
[313087806,1706736650624,-500.0,0.00038356,5]
[313087807,1706736650633,-536.72,0.00038356,5]
[313087808,1706736650643,-500.0,0.00038356,5]
[313087809,1706736650653,-500.0,0.00038356,5]
[313087810,1706736650662,-587.33,0.00038356,5]
[313087811,1706736650672,-540.51,0.00038356,5]
[313087812,1706736650681,-500.0,0.00038356,5]
[313087813,1706736650691,-1505.83,0.00038356,5]
[313087814,1706736650700,-1344.23,0.00038356,5]
[313087815,1706736650710,-715.02,0.00038356,5]
[313087816,1706736650719,-500.0,0.00038356,5]
[313087817,1706736650729,-500.0,0.00038356,5]
[313087818,1706736650739,-823.24,0.00038356,5]
[313087819,1706736650749,-3815.84,0.00038356,5]
[313087820,1706736650759,-595.74915244,0.00038356,5]
[313087821,1706736650769,-536.18525449,0.00038356,5]
[313087822,1706736650779,-500.0,0.00038356,5]
[313087823,1706736650789,-500.0,0.00038356,5]
[313087824,1706736650799,-300.0,0.00038356,5]
[313087825,1706736650809,-533.75,0.00038356,5]
[313087826,1706736650819,-500.0,0.00038356,5]
[313087827,1706736650830,-500.0,0.00038356,5]
[313087828,1706736650840,-500.0,0.00038356,5]
[313087829,1706736650850,-601.94,0.00038356,5]
[313087830,1706736650860,-500.0,0.00038356,5]
[313087831,1706736650870,-2237.3,0.00038356,5]
[313087832,1706736650881,-500.0,0.00038356,5]
[313087833,1706736650891,-538.00673218,0.00038356,5]
[313087834,1706736650901,-500.0,0.00038356,5]
[313087835,1706736650911,-789.41,0.00038356,5]
[313087836,1706736650921,-500.0,0.00038356,5]
[313087837,1706736650932,-500.0,0.00038356,5]
[313087838,1706736650942,-651.31,0.00038356,5]
[313087839,1706736650952,-719.21,0.00038356,5]
[313087840,1706736650962,-1657.29,0.00038356,5]
[313087841,1706736650973,-553.52838061,0.00038356,5]
[313087842,1706736650983,-500.0,0.00038356,5]
[313087843,1706736651080,-812.12,0.00038356,5]
[313087844,1706736651090,-500.0,0.00038356,5]
[313087845,1706736651100,-500.0,0.00038356,5]
[313087846,1706736651110,-500.0,0.00038356,5]
[313087847,1706736651119,-1780.38,0.00038356,5]
[313087848,1706736651129,-500.0,0.00038356,5]
[313087849,1706736651138,-500.0,0.00038356,5]
[313087850,1706736651148,-558.90664971,0.00038356,5]
[313087851,1706736651158,-546.34221692,0.00038356,5]
[313087852,1706736651167,-593.03059916,0.00038356,5]
[313087853,1706736651177,-500.0,0.00038356,5]
[313087854,1706736651186,-500.0,0.00038356,5]
[313087855,1706736651196,-500.0,0.00038356,5]
[313087856,1706736651207,-652.83,0.00038356,5]
[313087857,1706736651218,-500.0,0.00038356,5]
[313087858,1706736651227,-500.0,0.00038356,5]
[313087859,1706736651237,-538.39534742,0.00038356,5]
[313087860,1706736651247,-543.02722006,0.00038356,5]
[313087861,1706736651256,-500.0,0.00038356,5]
[313087862,1706736651272,-545.81241124,0.00038356,5]
[313087863,1706736651283,-547.10428988,0.00038356,5]
[313087864,1706736651294,-161.9,0.00038356,5]
[313087865,1706736651303,-791.3,0.00038356,5]
[313087866,1706736651313,-500.0,0.00038356,5]
[313087867,1706736651322,-849.04,0.00038356,5]
[313087868,1706736651332,-1524.13,0.00038356,5]
[313087869,1706736651342,-500.0,0.00038356,5]
[313087870,1706736651351,-2731.97,0.00038356,5]
[313087871,1706736651362,-1537.1,0.00038356,5]
[313087872,1706736651372,-500.0,0.00038356,5]
[313087873,1706736651382,-517.54977697,0.00038356,5]
[313087874,1706736651397,-571.63,0.00038356,5]
[313087875,1706736651413,-500.0,0.00038356,5]
[313087876,1706736651423,-255.81682621,0.00038356,5]
[313087877,1706736651433,-554.89891212,0.00038356,5]
[313087878,1706736651443,-640.29,0.00038356,5]
[313087879,1706736651453,-500.0,0.00038356,5]
[313087880,1706736651463,-545.10539641,0.00038356,5]
[313087881,1706736651474,-500.0,0.00038356,5]
[313087882,1706736651483,-500.0,0.00038356,5]
[313087883,1706736651493,-500.0,0.00038356,5]
[313087884,1706736651503,-500.0,0.00038356,5]
[313087885,1706736651514,-700.08,0.00038356,5]
[313087886,1706736651529,-500.0,0.00038356,5]
[313087887,1706736651539,-20006.34,0.00038356,5]
[313087888,1706736651549,-726.47,0.00038356,5]
[313087889,1706736651558,-510.24,0.00038356,5]
[313087890,1706736651568,-500.0,0.00038356,5]
[313087891,1706736651578,-500.0,0.00038356,5]
[313087892,1706736651588,-948.65,0.00038356,5]
[313087893,1706736651598,-435.07504178,0.00038356,5]
[313087894,1706736651607,-553.98388588,0.00038356,5]
[313087895,1706736651617,-581.17,0.00038356,5]
[313087896,1706736651626,-800.64,0.00038356,5]
[313087897,1706736651636,-500.0,0.00038356,5]
[313087898,1706736651646,-500.0,0.00038356,5]
[313087899,1706736651655,-525.69715432,0.00038356,5]
[313087900,1706736651671,-500.0,0.00038356,5]
[313087901,1706736651690,-500.0,0.00038356,5]
[313087902,1706736651700,-919.29109902,0.00038356,7]
[313087903,1706736651710,-500.0,0.00038356,5]
[313087904,1706736651720,-500.0,0.00038356,5]
[313087905,1706736651730,-482.21342769,0.00038356,5]
[313087906,1706736651739,-500.0,0.00038356,5]
[313087907,1706736651749,-506.67119008,0.00038356,5]
[313087908,1706736651760,-500.0,0.00038356,5]
[313087909,1706736651777,-567.51,0.00038356,5]
[313087910,1706736651787,-500.0,0.00038356,5]
[313087911,1706736651797,-228.33717302,0.00038356,5]
[313087912,1706736651808,-542.06922128,0.00038356,7]
[313087913,1706736651818,-500.0,0.00038356,5]
[313087914,1706736651828,-509.34996793,0.00038356,5]
[313087915,1706736651839,-500.0,0.00038356,5]
[313087916,1706736651850,-1484.95,0.00038356,5]
[313087917,1706736651860,-500.0,0.00038356,5]
[313087918,1706736651871,-500.0,0.00038356,5]
[313087919,1706736651881,-500.0,0.00038356,5]
[313087920,1706736651891,-1619.55,0.00038356,5]
[313087921,1706736651902,-500.0,0.00038356,5]
[313087922,1706736651911,-500.0,0.00038356,5]
[313087923,1706736651922,-604.26,0.00038356,5]
[313087924,1706736651931,-791.85,0.00038356,5]
[313087925,1706736651941,-500.0,0.00038356,5]
[313087926,1706736651952,-679.29,0.00038356,2]
[313087927,1706736651962,-500.0,0.00038356,5]
[313087928,1706736651972,-862.32,0.00038356,5]
[313087929,1706736651982,-500.0,0.00038356,5]
[313087930,1706736651992,-554.37923728,0.00038356,7]
[313087931,1706736652001,-572.29299517,0.00038356,5]
[313087932,1706736652011,-500.0,0.00038356,5]
[313087933,1706736652028,-500.0,0.00038356,5]
[313087934,1706736652038,-3247.43,0.00038356,5]
[313087935,1706736652049,-2628.35,0.00038356,5]
[313087936,1706736652059,-500.0,0.00038356,5]
[313087937,1706736652069,-1000.23,0.00038356,5]
[313087938,1706736652078,-500.0,0.00038356,5]
[313087939,1706736652088,-517.9859418,0.00038356,5]
[313087940,1706736652098,-500.0,0.00038356,5]
[313087941,1706736652109,-1155.57,0.00038356,5]
[313087942,1706736652119,-678.92,0.00038356,5]
[313087943,1706736652129,-500.0,0.00038356,5]
[313087944,1706736652138,-500.0,0.00038356,5]
[313087945,1706736652147,-500.0,0.00038356,5]
[313087946,1706736652157,-1333.1,0.00038356,5]
[313087947,1706736652166,-1036.02,0.00038356,5]
[313087948,1706736652176,-500.0,0.00038356,5]
[313087949,1706736652185,-500.0,0.00038356,5]
[313087950,1706736652194,-509.62,0.00038356,5]
[313087951,1706736652204,-500.0,0.00038356,5]
[313087952,1706736652216,-524.96003794,0.00038356,5]
[313087953,1706736652226,-500.0,0.00038356,5]
[313087954,1706736652236,-583.71782345,0.00038356,5]
[313087955,1706736652247,-534.88598334,0.00038356,5]
[313087956,1706736652257,-500.0,0.00038356,5]
[313087957,1706736652267,-500.0,0.00038356,5]
[313087958,1706736652283,-500.0,0.00038356,5]
[313087959,1706736652293,-500.0,0.00038356,7]
[313087960,1706736652303,-500.0,0.00038356,13]
[313087961,1706736652313,-500.0,0.00038356,13]
[313087962,1706736652322,-500.0,0.00038356,13]
[313087963,1706736652331,-500.0,0.00038356,13]
[313087964,1706736652342,-500.0,0.00038356,13]
[313087965,1706736652351,-500.0,0.00038356,13]
[313087966,1706736652360,-500.0,0.00038356,13]
[313087967,1706736652370,-500.0,0.00038356,13]
[313087968,1706736652380,-500.0,0.00038356,13]
[313087969,1706736652389,-500.0,0.00038356,13]
[313087970,1706736652399,-500.0,0.00038356,13]
[313087971,1706736652408,-500.0,0.00038356,13]
[313087972,1706736652418,-500.0,0.00038356,13]
[313087973,1706736652426,-500.0,0.00038356,13]
[313087974,1706736652436,-500.0,0.00038356,13]
[313087975,1706736652445,-500.0,0.00038356,13]
[313087976,1706736652455,-500.0,0.00038356,13]
[313087977,1706736652464,-500.0,0.00038356,13]
[313087978,1706736652474,-500.0,0.00038356,13]
[313087979,1706736652483,-500.0,0.00038356,13]
[313087980,1706736652493,-500.0,0.00038356,13]
[313087981,1706736652503,-500.0,0.00038356,13]
[313087982,1706736652512,-500.0,0.00038356,13]
[313087983,1706736652525,-500.0,0.00038356,13]
[313087984,1706736652534,-500.0,0.00038356,13]
[313087985,1706736652543,-500.0,0.00038356,13]
[313087986,1706736652553,-500.0,0.00038356,13]
[313087987,1706736652562,-500.0,0.00038356,13]
[313087988,1706736652573,-500.0,0.00038356,13]
[313087989,1706736652582,-500.0,0.00038356,13]
[313087990,1706736652591,-500.0,0.00038356,13]
[313087991,1706736652601,-500.0,0.00038356,13]
[313087992,1706736652610,-500.0,0.00038356,13]
[313087993,1706736652619,-500.0,0.00038356,13]
[313087994,1706736652629,-500.0,0.00038356,13]
[313087995,1706736652639,-500.0,0.00038356,13]
[313087996,1706736652648,-500.0,0.00038356,13]
[313087997,1706736652658,-500.0,0.00038356,13]
[313087998,1706736652667,-500.0,0.00038356,13]
[313087999,1706736652677,-500.0,0.00038356,13]
[313088000,1706736652687,-500.0,0.00038356,13]
[313088001,1706736652696,-500.0,0.00038356,13]
[313088002,1706736652706,-500.0,0.00038356,13]
[313088003,1706736652715,-500.0,0.00038356,13]
[313088004,1706736652724,-500.0,0.00038356,13]
[313088005,1706736652734,-500.0,0.00038356,13]
[313088006,1706736652744,-500.0,0.00038356,13]
[313088007,1706736652753,-500.0,0.00038356,13]
[313088008,1706736652763,-500.0,0.00038356,13]
[313088009,1706736652775,-500.0,0.00038356,13]
[313088010,1706736652785,-500.0,0.00038356,13]
[313088011,1706736652795,-500.0,0.00038356,13]
[313088012,1706736652804,-500.0,0.00038356,13]
[313088013,1706736652814,-500.0,0.00038356,13]
[313088014,1706736652823,-500.0,0.00038356,13]
[313088015,1706736652833,-500.0,0.00038356,13]
[313088016,1706736652843,-500.0,0.00038356,13]
[313088017,1706736652852,-500.0,0.00038356,13]
[313088018,1706736652861,-561.0,0.00038356,13]
[313088019,1706736652871,-833.55865245,0.0003836,7]
[313088020,1706736652881,-833.55865245,0.0003836,7]
[313088021,1706736652890,-833.55865245,0.0003836,7]
[313088022,1706736652900,-833.55865245,0.0003836,7]
[313088023,1706736652910,-833.55865245,0.0003836,7]
[313088024,1706736652919,-833.55865245,0.0003836,7]
[313088025,1706736652929,-833.55865245,0.0003836,7]
[313088026,1706736652939,-833.55865245,0.0003836,7]
[313088027,1706736652950,-833.55865245,0.0003836,7]
[313088028,1706736652959,-833.55865245,0.0003836,7]
[313088029,1706736652969,-833.55865245,0.0003836,7]
[313088030,1706736652978,-833.55865245,0.0003836,7]
[313088031,1706736652988,-833.55865245,0.0003836,7]
[313088032,1706736652997,-833.55865245,0.0003836,7]
[313088033,1706736653006,-833.55865245,0.0003836,7]
[313088034,1706736653015,-833.55865245,0.0003836,7]
[313088035,1706736653028,-833.55865245,0.0003836,7]
[313088036,1706736653038,-833.55865245,0.0003836,7]
[313088037,1706736653047,-833.55865245,0.0003836,7]
[313088038,1706736653056,-833.55,0.0003836,7]
[313088039,1706736653065,-339.65682604,0.0003836,7]
[313088040,1706736653075,-339.65682604,0.0003836,7]
[313088041,1706736653084,-339.65682604,0.0003836,7]
[313088042,1706736653093,-339.65682604,0.0003836,7]
[313088043,1706736653103,-339.65682604,0.0003836,7]
[313088044,1706736653112,-339.65682604,0.0003836,7]
[313088045,1706736653121,-339.65682604,0.0003836,7]
[313088046,1706736653131,-339.65682604,0.0003836,7]
[313088047,1706736653140,-339.65682604,0.0003836,7]
[313088048,1706736653150,-339.65682604,0.0003836,7]
[313088049,1706736653159,-339.65682604,0.0003836,7]
[313088050,1706736653168,-339.65682604,0.0003836,7]
[313088051,1706736653178,-339.65682604,0.0003836,7]
[313088052,1706736653187,-339.65682604,0.0003836,7]
[313088053,1706736653197,-339.65682604,0.0003836,7]
[313088054,1706736653208,-339.65682604,0.0003836,7]
[313088055,1706736653218,-339.65682604,0.0003836,7]
[313088056,1706736653228,-339.65682604,0.0003836,7]
[313088057,1706736653238,-339.65682604,0.0003836,7]
[313088058,1706736653248,-339.65,0.0003836,7]
[313088059,1706736653258,-536.59693933,0.0003836,7]
[313088060,1706736653270,-536.59693933,0.0003836,7]
[313088061,1706736653286,-536.59693933,0.0003836,7]